fUSD/lending_fUSD_20241006
["ID","MTS","AMOUNT","RATE_DAILY","PERIOD"]
[339949221,1728197432426,-150.0,0.00010999,2]
[339949222,1728197432435,-37717.77328676,0.00011,2]
[339949223,1728197432447,-13790.59481179,0.00011,2]
[339949224,1728197432458,-707.07731665,0.00011,2]
[339949225,1728197432470,-629.99914214,0.00011,2]
[339949226,1728197432482,-393.9067626,0.00011,2]
[339949227,1728197432494,-371.6925449,0.00011,2]
[339949228,1728197432505,-2072.1503,0.00011,2]
[339949229,1728197432517,-1200.8000398,0.00011,2]
[339949230,1728197432608,-470.36404404,0.00011,2]
[339949266,1728197438362,-500.03800013,0.00010973,2]
[339949267,1728197438372,-874.55339054,0.00010995,2]
[339949268,1728197438386,-939.71591651,0.00011,2]
[339949269,1728197438401,-4212.57288152,0.00011,2]
[339949270,1728197438413,-2130.40354718,0.00011,2]
[339949271,1728197438425,-1404.2,0.00011,2]
[339949272,1728197438435,-5305.36144738,0.00011,2]
[339949273,1728197438510,-2909.07629907,0.00011,2]
[339949284,1728197443462,-120925.0000001,0.00011,2]
[339949291,1728197446622,-26128.70114927,0.00011,2]
[339949292,1728197446639,-300.0,0.00011,2]
[339949293,1728197446796,-347.5413555,0.00011,2]
[339949294,1728197446808,-260.6034,0.00011,2]
[339949295,1728197446821,-602.28650003,0.00011,2]
[339949306,1728197490817,16400.47,0.00010856,2]
[339949307,1728197501963,250.0,0.00010856,2]
[339949308,1728197522011,3318.2356,0.000109,2]
[339949309,1728197553651,1500.0,0.00010805,2]
[339949310,1728197580904,1222.578,0.000109,2]
[339949311,1728197598382,500.0,0.00010812,2]
[339949312,1728197598871,500.0,0.00010813,2]
[339949313,1728197599323,500.0,0.00010813,2]
[339949314,1728197601823,200.67355549,0.000109,2]
[339949315,1728197607039,258.92603524,0.000109,2]
[339949316,1728197611697,261.5107,0.000109,2]
[339949317,1728197622864,294.39237974,0.000109,2]
[339949318,1728197630014,1000.0,0.000109,2]
[339949319,1728197642683,1547.0971,0.000109,2]
[339949320,1728197643950,224.3,0.00010844,2]
[339949321,1728197742251,172.61735682,0.000109,2]
[339949322,1728197753381,196.2615865,0.000109,2]
[339949323,1728197816327,250.0,0.00010777,2]
[339949324,1728197816501,1765.19068116,0.000109,2]
[339949325,1728197820130,167.49071049,0.000109,2]
[339949326,1728197861006,496.71,0.00010728,2]
[339949327,1728197908887,840.0,0.00010726,2]
[339949328,1728197911113,161.33933338,0.000109,2]
[339949329,1728197929242,1018.46,8.813e-05,2]
[339949330,1728197997154,250.0,0.00010753,2]
[339949331,1728198198645,224.3,0.0001071,2]
[339949332,1728198241782,1588.67161299,0.000109,2]
[339949333,1728198316796,250.0,0.0001065,2]
[339949335,1728198376067,289.24,0.0001063,2]
[339949336,1728198411416,161.33933335,0.000109,2]
[339949337,1728198412882,170.06,0.00010659,2]
[339949338,1728198413923,187.60624686,0.000109,2]
[339949339,1728198475890,967.53,8.763e-05,2]
[339949347,1728198530348,1000.0,0.00010632,2]
[339949348,1728198530402,250.0,0.00010662,2]
[339949356,1728198597728,1129.0,0.000109,2]
[339949362,1728198631418,-159.98,0.00010959,2]
[339949363,1728198631428,-993.43,0.00010959,2]
[339949364,1728198631438,-129.98985363,0.00010959,2]
[339949365,1728198631451,-370.01014637,0.00010959,2]
[339949366,1728198631460,-500.0,0.00010959,2]
[339949367,1728198631469,-500.0,0.00010959,2]
[339949368,1728198631479,-500.0,0.00010959,2]
[339949369,1728198631488,-159.44,0.00010959,2]
[339949370,1728198631497,-387.44,0.00010959,2]
[339949371,1728198631506,-2324.38898324,0.0001099,2]
[339949372,1728198631522,-809.82701676,0.0001099,2]
[339949373,1728198631531,-150.0,0.0001099,2]
[339949374,1728198631540,-561.83581059,0.0001099,2]
[339949375,1728198631550,-561.83581059,0.0001099,2]
[339949376,1728198631559,-178.25136206,0.0001099,2]
[339949377,1728198631575,-383.58444853,0.0001099,2]
[339949378,1728198631585,-727.17,0.0001099,2]
[339949379,1728198631595,-150.0,0.00010994,2]
[339949380,1728198631604,-4490.0105808,0.00010995,2]
[339949381,1728198631615,-716.18874666,0.00010995,2]
[339949382,1728198631638,-653.39083111,0.00010995,2]
[339949383,1728198637613,-559.12249875,0.00010995,2]
[339949384,1728198637654,-10143.08434258,0.00010995,2]
[339949385,1728198637664,-2065.14,0.00010995,2]
[339949386,1728198637673,-121.62378941,0.00010995,2]
[339949387,1728198637774,-4855.17195139,0.00010995,2]
[339949388,1728198637783,-1552.62804861,0.00010995,2]
[339949392,1728198639554,-564.93783196,0.00010995,2]
[339949393,1728198639678,-2649.89544973,0.00010995,2]
[339949394,1728198639688,-159.61986477,0.00010999,2]
[339949395,1728198639698,-182.042,0.00010999,2]
[339949396,1728198639709,-500.0,0.00010999,2]
[339949397,1728198639719,-500.0,0.00010999,2]
[339949398,1728198639730,-500.0,0.00010999,2]
[339949399,1728198639739,-366.61786993,0.00010999,2]
[339949400,1728198639750,-500.0,0.00010999,2]
[339949401,1728198639760,-500.0,0.00010999,2]
[339949402,1728198639769,-500.0,0.00010999,2]
[339949403,1728198639778,-500.0,0.00010999,2]
[339949404,1728198639788,-348.18064484,0.00010999,2]
[339949405,1728198639797,-500.0,0.00010999,2]
[339949406,1728198639807,-3915760.23789193,0.00011,2]
[339949407,1728198639817,-202029.82750294,0.00011,2]
[339949408,1728198641194,722.16573347,0.0001045,2]
[339949416,1728198667186,1429.8044517,0.000109,2]
[339949417,1728198701199,3651.91042009,0.00021,90]
[339949418,1728198736451,157.1,0.0001,2]
[339949419,1728198876971,161.33933335,0.000109,2]
[339949420,1728198891813,250.0,0.00010691,2]
[339949428,1728199018274,200.0,0.00010653,2]
[339949429,1728199036082,919.15,8.75e-05,2]
[339949430,1728199052543,250.0,0.00010656,2]
[339949431,1728199085323,167.49071049,0.000109,2]
[339949432,1728199092587,1286.82400653,0.000109,2]
[339949433,1728199213080,510.0,0.000109,2]
[339949434,1728199283840,500.0,8.22e-05,2]
[339949435,1728199284318,500.0,8.22e-05,2]
[339949436,1728199285588,500.0,9.59e-05,2]
[339949437,1728199285921,500.0,9.59e-05,2]
[339949438,1728199357216,161.33933335,0.000109,2]
[339949439,1728199517803,1158.14160585,0.000109,2]
[339949440,1728199542611,840.0,0.00010659,2]
[339949441,1728199576453,873.19,8.777e-05,2]
[339949442,1728199582592,161.33933335,0.000109,2]
[339949443,1728199618077,915732.0561683,0.0001088,2]
[339949444,1728199618395,-283.25,0.0001088,2]
[339949445,1728199619193,-281.3,0.0001088,2]
[339949446,1728199619665,-150.0,0.0001088,2]
[339949447,1728199620166,-150.0,0.0001088,2]
[339949448,1728199620564,-150.0,0.0001088,2]
[339949449,1728199620987,-150.0,0.0001088,2]
[339949450,1728199621505,-150.0,0.0001088,2]
[339949451,1728199621896,-1446.15089707,0.0001088,2]
[339949452,1728199623489,-150.0,0.00010879,2]
[339949453,1728199628136,-307.1024481,0.0001088,2]
[339949454,1728199633774,-1289.48092068,0.0001088,2]
[339949455,1728199635208,-537.62307932,0.0001088,2]
[339949456,1728199635783,-433.82571392,0.0001088,2]
[339949457,1728199636191,-370.27627177,0.0001088,2]
[339949458,1728199647513,-250.0,0.00010624,2]
[339949464,1728199723845,397.36,0.00010217,2]
[339949477,1728199831870,-283.25,0.00010561,2]
[339949478,1728199831879,-250.0,0.00010615,2]
[339949479,1728199831888,-188.91573347,0.0001078,2]
[339949480,1728199831977,-1627.51146653,0.0001078,2]
[339949481,1728199831987,-338.05160938,0.0001078,2]
[339949497,1728199838034,-609.78019062,0.0001078,2]
[339949499,1728199838043,-20.29412003,0.00010873,2]
[339949502,1728199838055,-480.26564235,0.00010873,2]
[339949504,1728199838064,-178.05986011,0.00010873,2]
[339949506,1728199838073,-504.78380105,0.00010873,2]
[339949508,1728199838083,-150.0,0.00010879,2]
[339949510,1728199838092,-12078.13747228,0.0001088,2]
[339949512,1728199838107,-2245.45032227,0.0001088,2]
[339949958,1728199845766,-271.29440099,0.0001088,2]
[339949959,1728199889851,-171.06,0.00010363,2]
[339949960,1728200005801,150.0,0.00010248,2]
[339949961,1728200038915,328.0,0.00010248,2]
[339949962,1728200168267,250.0,0.0001023,2]
[339949963,1728200199978,150.0,8.344e-05,2]
[339949964,1728200199999,150.0,8.344e-05,2]
[339949965,1728200200020,150.0,8.344e-05,2]
[339949966,1728200200044,150.0,8.344e-05,2]
[339949967,1728200200066,150.0,8.344e-05,2]
[339949968,1728200200086,79.53,8.344e-05,2]
[339949969,1728200340432,250.0,0.0001024,2]
[339949970,1728200369779,224.28938901,0.0001024,2]
[339949971,1728200369801,7.10061099,0.0001024,2]
[339949978,1728200472792,-829.53,0.00010608,2]
[339949979,1728200472815,-881.3,0.0001078,2]
[339949980,1728200472836,-159.75074816,0.00010873,2]
[339949981,1728200472860,-505.36067579,0.00010873,2]
[339949982,1728200472881,-500.0,0.00010873,2]
[339949983,1728200472903,-503.03356492,0.00010873,2]
[339949984,1728200472925,-150.0,0.00010879,2]
[339949985,1728200472948,-493185.04063286,0.0001088,2]
[339949986,1728200472969,-735.29613192,0.0001088,2]
[339949987,1728200472996,-1289.26142105,0.00010899,2]
[339949988,1728200473018,-433.8257,0.000109,2]
[339949989,1728200473040,-860.4956,0.000109,2]
[339949990,1728200473063,-167.49071049,0.000109,2]
[339949991,1728200473085,-364.11623298,0.000109,2]
[339949992,1728200473107,-192.07267852,0.000109,2]
[339949993,1728200473130,-500.0,0.00010958,2]
[339949994,1728200473153,-500.0,0.00010958,2]
[339949995,1728200473175,-500.0,0.00010958,2]
[339949996,1728200473197,-288.16848157,0.00010958,2]
[339949997,1728200473219,-156.58,0.00010959,2]
[339949998,1728200473244,-163.53,0.00010959,2]
[339949999,1728200473266,-1143.78,0.00010959,2]
[339950000,1728200473288,-161.04,0.00010959,2]
[339950001,1728200473310,-182.043,0.00010959,2]
[339950002,1728200473330,-500.0,0.0001096,2]
[339950003,1728200473351,-499.99,0.0001096,2]
[339950004,1728200473373,-1970.17,0.0001096,2]
[339950005,1728200473394,-999.99,0.0001096,2]
[339950006,1728200473414,-299.99,0.00010973,2]
[339950007,1728200473436,-212.21900856,0.00010973,2]
[339950008,1728200473457,-161.04479118,0.00010973,2]
[339950009,1728200473478,-508.95005763,0.00010973,2]
[339950010,1728200473499,-501.38725301,0.00010973,2]
[339950011,1728200473520,-508.61642061,0.00010973,2]
[339950012,1728200473541,-203.86162511,0.00010973,2]
[339950013,1728200473563,-559.243,0.00010988,2]
[339950014,1728200473584,-554.0,0.00010988,2]
[339950015,1728200473606,-1904.0,0.00010988,2]
[339950016,1728200473627,-1496.719,0.00010988,2]
[339950017,1728200473650,-807.0,0.00010988,2]
[339950018,1728200473672,-1911.0,0.00010988,2]
[339950019,1728200473696,-150.0,0.00010988,2]
[339950020,1728200473717,-4373.1396439,0.00010995,2]
[339950021,1728200473738,-573.0922441,0.00010995,2]
[339950022,1728200473761,-159.61986476,0.00010999,2]
[339950023,1728200473790,-148756.6086055,0.00011,2]
[339950024,1728200473815,-587371.02317801,0.00011,2]
[339950025,1728200473847,-101900.31959379,0.00011,2]
[339950026,1728200507548,150.0,8.22e-05,2]
[339950027,1728200507570,150.0,8.22e-05,2]
[339950028,1728200507591,150.0,8.22e-05,2]
[339950029,1728200507611,50.0,8.22e-05,2]
[339950030,1728200509674,500.0,9.59e-05,2]
[339950047,1728200747814,150.0,8.739e-05,2]
[339950048,1728200747836,150.0,8.739e-05,2]
[339950049,1728200747858,150.0,8.739e-05,2]
[339950050,1728200747879,171.03,8.739e-05,2]
[339950051,1728200747900,144.75,8.739e-05,2]
[339950053,1728200988933,-250.0,0.00010738,2]
[339950054,1728200990471,-387.69311724,0.00010738,2]
[339950064,1728201031770,-737.6,0.00010751,2]
[339950065,1728201031780,-1160.33527899,0.000109,2]
[339950066,1728201031789,-161.33933335,0.000109,2]
[339950067,1728201031798,-242.74415532,0.000109,2]
[339950068,1728201031807,-915.02,0.00010959,2]
[339950069,1728201031817,-150.0,0.00010959,2]
[339950070,1728201031826,-500.0,0.0001096,2]
[339950071,1728201031836,-3235.9761087,0.00010995,2]
[339950072,1728201031848,-818.15190406,0.00010995,2]
[339950073,1728201031864,-4328.91690403,0.00010995,2]
[339950074,1728201031875,-2090.43602911,0.00010995,2]
[339950075,1728201031884,-5615.64216495,0.00010995,2]
[339950076,1728201031895,-266.95294903,0.00010995,2]
[339950077,1728201031906,-1775.65369597,0.00010995,2]
[339950078,1728201031931,-1501.46659865,0.00010995,2]
[339950079,1728201031985,-496.3329089,0.00010995,2]
[339950080,1728201031996,-269.0000005,0.00010995,2]
[339950081,1728201032007,-409.80124548,0.00010995,2]
[339950082,1728201032040,-818.95666546,0.00010995,2]
[339950083,1728201032053,-745.31368766,0.00010995,2]
[339950084,1728201032092,-3350.40350675,0.00010995,2]
[339950085,1728201032102,-415.09721781,0.00010995,2]
[339950086,1728201032114,-308.807424,0.00010995,2]
[339950089,1728201037954,-42391.80466804,0.00010995,2]
[339950090,1728201037965,-1567.6372392,0.00010995,2]
[339950091,1728201037974,-150.0,0.00010999,2]
[339950092,1728201037983,-198.68538684,0.00010999,2]
[339950093,1728201037992,-1080506.88085589,0.00011,2]
[339950094,1728201038001,-306178.77657401,0.00011,2]
[339950095,1728201038010,-8305.96158748,0.00011,2]
[339950096,1728201038019,-7440.0,0.00011,2]
[339950097,1728201038028,-208482.66134595,0.00011,2]
[339950098,1728201038041,-373.72250086,0.00011,2]
[339950099,1728201038053,-1000.0,0.00011,2]
[339950100,1728201038064,-1466.63911827,0.00011,2]
[339950101,1728201038263,-372137.16793114,0.00011,2]
[339950102,1728201038275,-2944.34240302,0.00011,2]
[339950103,1728201038287,-9101.3781579,0.00011,2]
[339950104,1728201038299,-8693.51986952,0.00011,2]
[339950105,1728201038310,-1381.24087936,0.00011,2]
[339950106,1728201038325,-496.61636992,0.00011,2]
[339950107,1728201038337,-563.76757116,0.00011,2]
[339950109,1728201038353,-304.56000055,0.00011,2]
[339950111,1728201038369,-35082.95494093,0.00011,2]
[339950123,1728201038525,-31253.03540949,0.00011,2]
[339950401,1728201042831,-635.21123001,0.00011,2]
[339950405,1728201042842,-615.87103165,0.00011,2]
[339950421,1728201042989,-423.97074858,0.00011,2]
[339950424,1728201043001,-21265.68264158,0.00011,2]
[339950729,1728201046211,-23317.21963254,0.00011,2]
[339950731,1728201046223,-28405.13568203,0.00011,2]
[339950733,1728201046232,-195.78435676,0.00011,2]
[339950735,1728201046241,-235786.45065665,0.00011,2]
[339950821,1728201065392,150.0,8.22e-05,2]
[339950822,1728201065425,350.0,8.22e-05,2]
[339950823,1728201167285,-549.59,0.00010665,2]
[339950824,1728201170446,-409.92,0.00010671,2]
[339950825,1728201182474,10000.0,0.000201,120]
[339950826,1728201200713,-500.0,0.00010585,2]
[339950827,1728201201217,-500.0,0.00010586,2]
[339950828,1728201202710,-250.0,0.00010662,2]
[339950829,1728201248674,1455.99,8.784e-05,2]
[339950830,1728201363123,-200.0,0.00010696,2]
[339950831,1728201368736,-172.28,0.00010696,2]
[339950832,1728201470296,-250.0,0.000107,2]
[339950833,1728201498340,-262.0,0.0001066,2]
[339950834,1728201498544,-262.0,0.00010663,2]
[339950835,1728201498882,-262.0,0.00010665,2]
[339950836,1728201558110,781.65,9.885e-05,2]
[339950837,1728201558131,189.91,9.885e-05,2]
[339950838,1728201558161,150.0,9.885e-05,2]
[339950839,1728201558182,80.02,9.885e-05,2]
[339950840,1728201565486,150.0,9.897e-05,2]
[339950841,1728201565511,934.71,9.897e-05,2]
[339950842,1728201576255,150.0,9.915e-05,2]
[339950843,1728201576275,150.0,9.915e-05,2]
[339950844,1728201576296,150.0,9.915e-05,2]
[339950845,1728201576316,150.0,9.915e-05,2]
[339950846,1728201576336,150.0,9.915e-05,2]
[339950847,1728201576357,149.54,9.915e-05,2]
[339950848,1728201672170,672.06,9.902e-05,2]
[339950849,1728201697117,150.0,9.928e-05,2]
[339950850,1728201697138,100.0,9.928e-05,2]
[339950851,1728201797357,500.0,9.849e-05,2]
[339950852,1728201955083,1383.19,8.219e-05,2]
[339950853,1728201965209,150.0,9.854e-05,2]
[339950854,1728201965232,150.0,9.854e-05,2]
[339950855,1728201965255,150.0,9.854e-05,2]
[339950856,1728201965281,150.0,9.854e-05,2]
[339950857,1728201965306,150.0,9.854e-05,2]
[339950858,1728201965332,50.0,9.854e-05,2]
[339950859,1728201965361,-1028.44,0.00010469,2]
[339950860,1728202030417,250.0,9.871e-05,2]
[339950861,1728202041258,-494.2,0.00010468,2]
[339950862,1728202045317,174.69,9.847e-05,2]
[339950863,1728202045520,174.69,9.871e-05,2]
[339950864,1728202045718,174.69,9.896e-05,2]
[339950865,1728202106207,150.0,9.844e-05,2]
[339950866,1728202106227,150.0,9.844e-05,2]
[339950867,1728202106247,150.0,9.844e-05,2]
[339950868,1728202106268,92.35,9.844e-05,2]
[339950872,1728202126891,150.0,9.862e-05,2]
[339950873,1728202126916,150.0,9.862e-05,2]
[339950874,1728202126940,150.0,9.862e-05,2]
[339950875,1728202126961,150.0,9.862e-05,2]
[339950876,1728202126982,150.0,9.862e-05,2]
[339950877,1728202127007,150.0,9.862e-05,2]
[339950878,1728202127030,150.0,9.862e-05,2]
[339950879,1728202127053,150.0,9.862e-05,2]
[339950880,1728202127073,150.0,9.862e-05,2]
[339950881,1728202127097,150.0,9.862e-05,2]
[339950882,1728202127117,28.08,9.862e-05,2]
[339950883,1728202186804,150.0,9.872e-05,2]
[339950884,1728202186824,100.0,9.872e-05,2]
[339950885,1728202222976,549.59,9.852e-05,2]
[339950888,1728202231983,-354.75,0.00010469,2]
[339950889,1728202231993,-888.75166088,0.00010568,2]
[339950890,1728202232002,-262.0,0.00010668,2]
[339950891,1728202232011,-387.69311724,0.00010668,2]
[339950892,1728202232021,-262.0,0.00010671,2]
[339950893,1728202232030,-63.30169019,0.00010674,2]
[339950894,1728202232041,-198.69830981,0.00010674,2]
[339950895,1728202232050,-262.0,0.00010677,2]
[339950896,1728202232059,-262.0,0.00010679,2]
[339950897,1728202232069,-183.17548276,0.00010682,2]
[339950898,1728202232105,-78.82451724,0.00010682,2]
[339950899,1728202232114,-262.0,0.00010685,2]
[339950900,1728202232123,-299.99,0.00010685,2]
[339950901,1728202232133,-262.0,0.00010688,2]
[339950902,1728202232142,-499.99,0.00010688,2]
[339950903,1728202232153,-262.0,0.0001069,2]
[339950904,1728202232162,-262.0,0.00010693,2]
[339950905,1728202232171,-262.0,0.00010696,2]
[339950906,1728202232181,-262.0,0.00010699,2]
[339950907,1728202232190,-262.0,0.00010702,2]
[339950908,1728202232200,-262.0,0.00010704,2]
[339950909,1728202232209,-262.0,0.00010707,2]
[339950910,1728202232218,-262.0,0.0001071,2]
[339950911,1728202232227,-162.16601772,0.00010713,2]
[339950912,1728202232238,-99.83398228,0.00010713,2]
[339950913,1728202232248,-300.0,0.00010899,2]
[339950914,1728202232258,-444.80198555,0.000109,2]
[339950915,1728202232269,-261.61765401,0.000109,2]
[339950916,1728202238156,-560.12268967,0.000109,2]
[339950917,1728202238166,-150.0,0.00010947,2]
[339950918,1728202238176,-160.83,0.00010959,2]
[339950919,1728202238185,-129.04731033,0.00010959,2]
[339950930,1728202238535,-602.96268967,0.00010959,2]
[339950932,1728202238543,-156.58,0.00010959,2]
[339950934,1728202238552,-283.28686686,0.0001096,2]
[339950952,1728202240046,-216.71313314,0.0001096,2]
[339950953,1728202240056,-150.0,0.0001099,2]
[339950954,1728202240066,-379.35742386,0.0001099,2]
[339950955,1728202240075,-7485.6800084,0.00010995,2]
[339950956,1728202240088,-1000.0,0.00010999,2]
[339950957,1728202240099,-169.918,0.00010999,2]
[339950958,1728202240108,-1526.472,0.00010999,2]
[339950959,1728202240120,-500.0,0.00010999,2]
[339950960,1728202240129,-500.0,0.00010999,2]
[339950961,1728202240138,-500.0,0.00010999,2]
[339950962,1728202240147,-500.0,0.00010999,2]
[339950963,1728202240272,-500.0,0.00010999,2]
[339950964,1728202240282,-614.05156024,0.00010999,2]
[339950965,1728202240290,-452.01135912,0.00011,2]
[339951220,1728202243150,-3932.95846468,0.00011,2]
[339951222,1728202243163,-9246.33797304,0.00011,2]
[339951227,1728202243204,-279.92356222,0.00011,2]
[339951229,1728202243216,-500.0,0.00011,2]
[339951231,1728202243227,-716.4,0.00011,2]
[339951233,1728202243238,-442.038004,0.00011,2]
[339951236,1728202243260,-10136.79964742,0.00011,2]
[339951238,1728202243272,-759.4936,0.00011,2]
[339951409,1728202246497,-3707.07225654,0.00011,2]
[339951428,1728202266312,150.0,8.22e-05,2]
[339951429,1728202266332,150.0,8.22e-05,2]
[339951430,1728202266352,150.0,8.22e-05,2]
[339951431,1728202266372,50.0,8.22e-05,2]
[339951434,1728202410954,-614.4964,0.00010607,2]
[339951435,1728202410978,-172.31,0.00010716,2]
[339951436,1728202411001,-1000.0,0.00010775,2]
[339951437,1728202411024,-7134.5501,0.000109,2]
[339951438,1728202411048,-161.33933335,0.000109,2]
[339951439,1728202411072,-1873.62377525,0.000109,2]
[339951440,1728202411095,-500.0,0.00010912,2]
[339951441,1728202411117,-585.6,0.00010959,2]
[339951442,1728202411143,-500.0,0.00010973,2]
[339951443,1728202411165,-150.0,0.00010999,2]
[339951444,1728202411192,-87308.0803914,0.00011,2]
[339951454,1728202543131,217.8,8.725e-05,2]
[339951455,1728202543159,1063.48,8.725e-05,2]
[339951456,1728202569360,-322.18,0.00010341,2]
[339951457,1728202606595,-271.17,0.00010335,2]
[339951461,1728202629459,-262.01,0.00010291,2]
[339951462,1728202644090,-428.5,0.00010291,2]
[339951465,1728202745967,-250.0,0.00010312,2]
[339951477,1728202902991,150.0,0.00010213,2]
[339951478,1728202903012,16.71,0.00010213,2]
[339951479,1728202920659,980.78,0.00010213,2]
[339951480,1728202940003,-356.32,0.0001024,2]
[339951481,1728202940796,-1028.44,0.0001024,2]
[339951482,1728202941714,-304.77,0.0001024,2]
[339951483,1728202966826,-171.06,0.0001027,2]
[339951484,1728203026881,-250.0,0.00010266,2]
[339951485,1728203030706,-368.37,0.00010301,2]
[339951486,1728203084051,150.0,8.363e-05,2]
[339951487,1728203084075,1160.11,8.363e-05,2]
[339951488,1728203104783,200.0,0.00010219,2]
[339951490,1728203130056,49317.45610859,0.000101,2]
[339951491,1728203136976,22000.0,9e-05,2]
[339951495,1728203155533,20108.42699708,6.94e-05,2]
[339951497,1728203223391,1000.0,0.00021,90]
[339951498,1728203249126,-307.1037146,0.00010301,2]
[339951500,1728203299230,150.0,0.00010205,2]
[339951501,1728203299252,121.17,0.00010205,2]
[339951503,1728203318783,28.83,0.0001,2]
[339951504,1728203318804,150.0,0.0001,2]
[339951505,1728203318825,2411.21200869,0.0001,2]
[339951506,1728203322268,42367.95799944,0.0001,2]
[339951531,1728203432244,-324.5262854,0.00010301,2]
[339951532,1728203432254,-507.43872926,0.00010527,2]
[339951533,1728203432263,-1018.73900534,0.00010627,2]
[339951534,1728203432276,-291.37099466,0.00010627,2]
[339951535,1728203432285,-329.48855693,0.00010643,2]
[339951536,1728203432297,-195.70144307,0.00010643,2]
[339951537,1728203432308,-5699.00933086,0.0001088,2]
[339951538,1728203432317,-293.9926,0.000109,2]
[339951539,1728203432327,-1139.88809628,0.000109,2]
[339951540,1728203432337,-192.07267852,0.000109,2]
[339951541,1728203432347,-159.85984811,0.000109,2]
[339951542,1728203432358,-500.0,0.00010912,2]
[339951543,1728203432367,-163.28,0.00010959,2]
[339951544,1728203432377,-6625.83690689,0.00010959,2]
[339951545,1728203432409,-158.24649877,0.000109,2]
[339951546,1728203432419,-380.04470737,0.00010959,2]
[339951547,1728203432430,-1200.0,0.00010959,2]
[339951550,1728203438587,-457.2,0.00010959,2]
[339951564,1728203440191,-5226.75657344,0.00010959,2]
[339951565,1728203440202,-2805.27882396,0.00010959,2]
[339951566,1728203440214,-1641.30252,0.00010959,2]
[339951567,1728203440225,-312.6060121,0.00010959,2]
[339951568,1728203440237,-1086.00001,0.00010959,2]
[339951569,1728203440248,-266.56,0.00010959,2]
[339951570,1728203440259,-430.59,0.00010959,2]
[339951571,1728203440270,-3500.0,0.00010959,2]
[339951572,1728203440363,-605.73904894,0.00010959,2]
[339951573,1728203440375,-3902.67612107,0.00010959,2]
[339951574,1728203440386,-884.16644664,0.00010959,2]
[339951575,1728203440422,-588.2445,0.00010959,2]
[339951576,1728203440433,-2267.46633237,0.00010959,2]
[339951577,1728203440444,-505.2624392,0.00010959,2]
[339951578,1728203440600,-6058.74999999,0.00010959,2]
[339951579,1728203440611,-1600.65,0.00010959,2]
[339951817,1728203443229,-1578.62846982,0.00010959,2]
[339951820,1728203443240,-383.20020393,0.00010959,2]
[339951824,1728203443251,-5630.95657849,0.00010959,2]
[339951830,1728203443286,-490.45,0.00010959,2]
[339951833,1728203443298,-715.77,0.00010959,2]
[339951843,1728203443344,-759.5749,0.00010959,2]
[339951846,1728203443356,-9117.48,0.00010959,2]
[339951855,1728203443402,-13909.70808209,0.00010959,2]
[339951869,1728203443519,-506.1732825,0.00010959,2]
[339952082,1728203446200,-6156.78116443,0.00010959,2]
[339952088,1728203446257,-1919.57705919,0.00010959,2]
[339952090,1728203446269,-442.85469568,0.00010959,2]
[339952092,1728203446281,-4919.07120143,0.00010959,2]
[339952094,1728203446291,-1185.57,0.00010959,2]
[339952098,1728203446317,-844.67392047,0.00010959,2]
[339952100,1728203446328,-250.0,0.00010959,2]
[339952101,1728203446338,-454.22057911,0.00010959,2]
[339952104,1728203446349,-14.25942089,0.00010959,2]
[339952106,1728203446359,-500.0,0.00010973,2]
[339952107,1728203446368,-500.0,0.00010973,2]